fUSD/lending_fUSD_20250107
["ID","MTS","AMOUNT","RATE_DAILY","PERIOD"]
[348049664,1736281835442,-810.97479043,9.697e-05,2]
[348049689,1736281837744,-4816.8,9.697e-05,2]
[348049694,1736281837756,-18429.96965614,9.697e-05,2]
[348049696,1736281837859,-2889.57,9.697e-05,2]
[348049697,1736281837872,-30243.89678991,9.697e-05,2]
[348049698,1736281837882,-13664.0814,9.697e-05,2]
[348049699,1736281837893,-12155.0,9.699e-05,2]
[348049700,1736281837903,-3200.0,9.7e-05,3]
[348049701,1736281837913,-150.0,9.727e-05,2]
[348049702,1736281837922,-150.0,9.748e-05,2]
[348049703,1736281837933,-150.0,9.748e-05,2]
[348049704,1736281837943,-500.0,9.794e-05,2]
[348049705,1736281837952,-2604.28,9.794e-05,2]
[348049706,1736281837963,-4580.92,9.794e-05,2]
[348049707,1736281837973,-2608.91,9.794e-05,2]
[348049708,1736281837983,-500.0,9.794e-05,2]
[348049709,1736281837992,-1415.9,9.794e-05,2]
[348049710,1736281838002,-3743.95,9.794e-05,2]
[348049711,1736281838011,-500.0,9.794e-05,2]
[348049712,1736281838021,-500.0,9.794e-05,2]
[348049713,1736281838030,-1492.43,9.794e-05,2]
[348049714,1736281838040,-500.0,9.794e-05,2]
[348049715,1736281838050,-500.0,9.794e-05,2]
[348049716,1736281838059,-1382.46,9.794e-05,2]
[348049717,1736281838069,-727.37,9.794e-05,2]
[348049718,1736281838078,-806.39,9.794e-05,2]
[348049719,1736281838088,-500.0,9.794e-05,2]
[348049720,1736281838097,-500.0,9.794e-05,2]
[348049721,1736281838107,-2472.53,9.794e-05,2]
[348049722,1736281838116,-1273.53,9.794e-05,2]
[348049723,1736281838126,-500.0,9.794e-05,2]
[348049724,1736281838144,-500.0,9.794e-05,2]
[348049725,1736281838153,-500.0,9.794e-05,2]
[348049726,1736281838162,-500.0,9.794e-05,2]
[348049727,1736281838174,-500.0,9.794e-05,2]
[348049728,1736281838183,-500.0,9.795e-05,2]
[348049729,1736281838192,-734.53,9.795e-05,2]
[348049730,1736281838202,-500.0,9.795e-05,2]
[348049731,1736281838211,-500.0,9.795e-05,2]
[348049732,1736281838220,-500.0,9.795e-05,2]
[348049734,1736281838230,-1517.18,9.795e-05,2]
[348049735,1736281838239,-953.21,9.795e-05,2]
[348049736,1736281838248,-1239.41,9.795e-05,2]
[348049737,1736281838258,-593.11,9.795e-05,2]
[348049738,1736281838267,-375.1338412,9.795e-05,2]
[348049739,1736281838279,-124.8661588,9.795e-05,2]
[348049740,1736281838288,-283.6337982,9.795e-05,2]
[348049741,1736281838299,-223.0062018,9.795e-05,2]
[348049742,1736281838309,-500.0,9.795e-05,2]
[348049743,1736281838319,-240.80664821,9.795e-05,2]
[348049744,1736281838350,-259.19335179,9.795e-05,2]
[348049745,1736281838359,-511.79,9.795e-05,2]
[348049746,1736281838368,-912.89,9.795e-05,2]
[348049747,1736281838378,-272.34743905,9.795e-05,2]
[348049748,1736281838395,-319.85256095,9.795e-05,2]
[348049749,1736281838404,-500.0,9.795e-05,2]
[348049750,1736281838414,-580.72069137,9.795e-05,2]
[348049754,1736281839870,-500.0,9.794e-05,2]
[348049755,1736281839880,-550.63930863,9.795e-05,2]
[348049756,1736281839890,-1168.81,9.795e-05,2]
[348049757,1736281839899,-500.0,9.795e-05,2]
[348049758,1736281839908,-500.0,9.795e-05,2]
[348049759,1736281839917,-1185.89,9.795e-05,2]
[348049760,1736281839929,-1780.45,9.795e-05,2]
[348049761,1736281839938,-500.0,9.795e-05,2]
[348049762,1736281839948,-500.0,9.795e-05,2]
[348049763,1736281839957,-500.0,9.795e-05,2]
[348049764,1736281839970,-500.0,9.795e-05,2]
[348049765,1736281839980,-500.0,9.795e-05,2]
[348049766,1736281839990,-1559.62,9.795e-05,2]
[348049767,1736281839999,-586.75,9.795e-05,2]
[348049768,1736281840008,-501.46,9.795e-05,2]
[348049769,1736281840018,-500.0,9.795e-05,2]
[348049770,1736281840027,-500.0,9.795e-05,2]
[348049771,1736281840037,-563.27,9.795e-05,2]
[348049772,1736281840049,-1434.16,9.795e-05,2]
[348049773,1736281840059,-500.0,9.795e-05,2]
[348049774,1736281840069,-1175.03,9.795e-05,2]
[348049775,1736281840078,-954.93185798,9.795e-05,2]
[348049776,1736281840090,-352.68814202,9.795e-05,2]
[348049777,1736281840099,-333.55819192,9.795e-05,2]
[348049778,1736281840111,-166.44180808,9.795e-05,2]
[348049779,1736281840120,-670.23,9.795e-05,2]
[348049780,1736281840130,-143.77765213,9.795e-05,2]
[348049781,1736281840184,-356.22234787,9.795e-05,2]
[348049782,1736281840194,-2159.96,9.795e-05,2]
[348049783,1736281840203,-164.67150598,9.795e-05,2]
[348049784,1736281840213,-1083.92,9.795e-05,2]
[348049785,1736281840222,-500.0,9.795e-05,2]
[348049786,1736281840231,-500.0,9.795e-05,2]
[348049787,1736281840240,-1240.34,9.795e-05,2]
[348049788,1736281840250,-500.0,9.795e-05,2]
[348049789,1736281840259,-500.0,9.795e-05,2]
[348049790,1736281840268,-500.0,9.795e-05,2]
[348049791,1736281840277,-381.78323955,9.795e-05,2]
[348049792,1736281840290,-1299.00894545,9.795e-05,2]
[348049793,1736281840299,-543.86,9.795e-05,2]
[348049794,1736281840309,-527.78,9.795e-05,2]
[348049795,1736281840318,-159.403828,9.795e-05,2]
[348049796,1736281840327,-797.86,9.795e-05,2]
[348049797,1736281840337,-157.994959,9.795e-05,2]
[348049798,1736281840346,-560.06,9.795e-05,2]
[348049799,1736281840355,-500.0,9.795e-05,2]
[348049800,1736281840365,-997.8259054,9.795e-05,2]
[348049801,1736281840377,-780.4040946,9.795e-05,2]
[348049802,1736281840390,-500.0,9.795e-05,2]
[348049803,1736281840399,-500.0,9.795e-05,2]
[348049804,1736281840408,-269.5959054,9.795e-05,2]
[348049805,1736281840434,-1472.9755806,9.795e-05,2]
[348049806,1736281840444,-1280.58,9.795e-05,2]
[348049807,1736281840453,-500.0,9.795e-05,2]
[348049808,1736281840462,-667.31,9.795e-05,2]
[348049809,1736281840472,-500.0,9.795e-05,2]
[348049810,1736281840683,-500.0,9.795e-05,2]
[348049811,1736281840694,-1192.6,9.795e-05,2]
[348049812,1736281840703,-500.0,9.795e-05,2]
[348049813,1736281840712,-500.0,9.795e-05,2]
[348049814,1736281840722,-1313.98,9.795e-05,2]
[348049815,1736281840731,-1219.63,9.795e-05,2]
[348049816,1736281840740,-500.0,9.795e-05,2]
[348049817,1736281840751,-994.37,9.795e-05,2]
[348049818,1736281840761,-500.0,9.795e-05,2]
[348049819,1736281840771,-2308.55,9.795e-05,2]
[348049820,1736281840780,-2600.01709422,9.795e-05,2]
[348049821,1736281840792,-633.12290578,9.795e-05,2]
[348049822,1736281840802,-1081.0,9.795e-05,2]
[348049823,1736281840812,-1852.39,9.795e-05,2]
[348049824,1736281840821,-1393.79,9.795e-05,2]
[348049825,1736281840831,-1230.61,9.795e-05,2]
[348049826,1736281840842,-996.9,9.795e-05,2]
[348049827,1736281840855,-3474.39,9.795e-05,2]
[348049828,1736281840865,-500.0,9.795e-05,2]
[348049829,1736281840875,-500.0,9.795e-05,2]
[348049830,1736281840887,-673.77,9.795e-05,2]
[348049831,1736281840897,-3965.33,9.795e-05,2]
[348049832,1736281840907,-500.0,9.795e-05,2]
[348049833,1736281840917,-1043.91,9.795e-05,2]
[348049834,1736281840928,-500.0,9.795e-05,2]
[348049835,1736281840938,-1449.63,9.795e-05,2]
[348049836,1736281840947,-1585.08,9.795e-05,2]
[348049837,1736281840957,-1576.29,9.795e-05,2]
[348049838,1736281840966,-1246.11,9.795e-05,2]
[348049839,1736281840976,-2536.59,9.795e-05,2]
[348049840,1736281840986,-524.23,9.795e-05,2]
[348049841,1736281840995,-1085.57,9.795e-05,2]
[348049842,1736281841005,-795.91,9.795e-05,2]
[348049843,1736281841015,-3306.76,9.795e-05,2]
[348049844,1736281841025,-7611.53,9.795e-05,2]
[348049845,1736281841034,-1431.14,9.795e-05,2]
[348049846,1736281841044,-500.0,9.795e-05,2]
[348049847,1736281841053,-500.0,9.795e-05,2]
[348049848,1736281841063,-1589.09,9.795e-05,2]
[348049849,1736281841073,-1389.9,9.795e-05,2]
[348049850,1736281841082,-997.58,9.795e-05,2]
[348049851,1736281841092,-1667.87709422,9.795e-05,2]
[348049852,1736281841112,-4004.26290578,9.795e-05,2]
[348049853,1736281841122,-3613.81505193,9.795e-05,2]
[348049854,1736281841134,-1031.46494807,9.795e-05,2]
[348049855,1736281841143,-1555.69126292,9.795e-05,2]
[348049856,1736281841154,-452.58873708,9.795e-05,2]
[348049857,1736281841163,-2536.84921203,9.795e-05,2]
[348049858,1736281841174,-326.66508159,9.795e-05,2]
[348049859,1736281841186,-2436.83570638,9.795e-05,2]
[348049860,1736281841195,-500.0,9.795e-05,2]
[348049861,1736281841204,-964.73,9.795e-05,2]
[348049862,1736281841213,-574.91,9.795e-05,2]
[348049863,1736281841222,-1366.42,9.795e-05,2]
[348049864,1736281841231,-4405.10239308,9.795e-05,2]
[348049865,1736281841242,-1518.41760692,9.795e-05,2]
[348049866,1736281841251,-87.81186508,9.795e-05,2]
[348049867,1736281841263,-1657.69813492,9.795e-05,2]
[348049868,1736281841273,-3025.3,9.795e-05,2]
[348049869,1736281841282,-729.21,9.795e-05,2]
[348049870,1736281841291,-500.0,9.795e-05,2]
[348049871,1736281841301,-1277.19,9.795e-05,2]
[348049872,1736281841310,-2536.89,9.795e-05,2]
[348049873,1736281841319,-821.71,9.795e-05,2]
[348049874,1736281841328,-1416.69,9.795e-05,2]
[348049875,1736281841337,-1069.32,9.795e-05,2]
[348049876,1736281841347,-508.0,9.795e-05,2]
[348049877,1736281841355,-500.0,9.795e-05,2]
[348049878,1736281841365,-1215.4,9.795e-05,2]
[348049879,1736281841374,-673.85,9.795e-05,2]
[348049880,1736281841384,-1094.64,9.795e-05,2]
[348049881,1736281841393,-1563.59,9.795e-05,2]
[348049882,1736281841403,-3835.08,9.796e-05,2]
[348049883,1736281841411,-2462.52,9.796e-05,2]
[348049884,1736281841421,-4689.86,9.796e-05,2]
[348049885,1736281841430,-1124.52,9.796e-05,2]
[348049886,1736281841440,-500.0,9.796e-05,2]
[348049887,1736281841450,-500.0,9.796e-05,2]
[348049888,1736281841459,-773.35,9.796e-05,2]
[348049889,1736281841468,-530.54,9.796e-05,2]
[348049890,1736281841477,-898.81,9.796e-05,2]
[348049891,1736281841487,-500.0,9.796e-05,2]
[348049892,1736281841496,-500.0,9.796e-05,2]
[348049893,1736281841505,-753.91,9.796e-05,2]
[348049894,1736281841514,-500.0,9.796e-05,2]
[348049895,1736281841523,-500.0,9.796e-05,2]
[348049896,1736281841533,-912.69,9.796e-05,2]
[348049897,1736281841542,-500.0,9.796e-05,2]
[348049898,1736281841552,-500.0,9.796e-05,2]
[348049899,1736281841561,-2149.29,9.796e-05,2]
[348049900,1736281841571,-536.09,9.796e-05,2]
[348049901,1736281841580,-654.09,9.796e-05,2]
[348049902,1736281841589,-500.0,9.796e-05,2]
[348049903,1736281841598,-756.89,9.796e-05,2]
[348049904,1736281841607,-500.0,9.796e-05,2]
[348049905,1736281841618,-500.0,9.796e-05,2]
[348049906,1736281841627,-500.0,9.796e-05,2]
[348049907,1736281841637,-500.0,9.796e-05,2]
[348049908,1736281841646,-5872.34,9.796e-05,2]
[348049909,1736281841655,-623.26,9.796e-05,2]
[348049910,1736281841664,-658.81,9.796e-05,2]
[348049911,1736281841674,-1236.85,9.796e-05,2]
[348049912,1736281841684,-509.81,9.796e-05,2]
[348049913,1736281841693,-500.0,9.796e-05,2]
[348049914,1736281841702,-1337.71,9.796e-05,2]
[348049915,1736281841711,-800.39,9.796e-05,2]
[348049916,1736281841721,-500.0,9.796e-05,2]
[348049917,1736281841730,-667.08,9.796e-05,2]
[348049918,1736281841741,-892.07,9.796e-05,2]
[348049919,1736281841751,-500.0,9.796e-05,2]
[348049920,1736281841760,-617.44,9.796e-05,2]
[348049921,1736281841770,-500.0,9.796e-05,2]
[348049922,1736281841782,-890.31,9.796e-05,2]
[348049923,1736281841791,-500.0,9.796e-05,2]
[348049924,1736281841801,-711.09,9.796e-05,2]
[348049925,1736281841810,-691.55,9.796e-05,2]
[348049926,1736281841819,-604.0,9.796e-05,2]
[348049927,1736281841829,-500.0,9.796e-05,2]
[348049928,1736281841838,-500.0,9.796e-05,2]
[348049929,1736281841848,-500.0,9.796e-05,2]
[348049930,1736281841859,-1359.82,9.796e-05,2]
[348049931,1736281841868,-500.0,9.796e-05,2]
[348049932,1736281841877,-500.0,9.796e-05,2]
[348049933,1736281841888,-500.0,9.796e-05,2]
[348049934,1736281841898,-500.0,9.796e-05,2]
[348049935,1736281841908,-639.08,9.796e-05,2]
[348049936,1736281841917,-500.0,9.796e-05,2]
[348049937,1736281841927,-500.0,9.796e-05,2]
[348049938,1736281841937,-1488.13,9.796e-05,2]
[348049939,1736281841946,-1031.4,9.796e-05,2]
[348049940,1736281841955,-1256.3,9.796e-05,2]
[348049941,1736281841964,-448.79245264,9.796e-05,2]
[348049942,1736281841973,-500.0,9.796e-05,2]
[348049943,1736281841982,-500.0,9.796e-05,2]
[348049944,1736281841991,-516.93,9.796e-05,2]
[348049945,1736281842000,-638.16,9.796e-05,2]
[348049946,1736281842009,-2579.19,9.796e-05,2]
[348049947,1736281842019,-500.0,9.796e-05,2]
[348049948,1736281842030,-575.39,9.796e-05,2]
[348049949,1736281842039,-643.49,9.796e-05,2]
[348049950,1736281842048,-1442.12,9.796e-05,2]
[348049951,1736281842058,-2245.49,9.796e-05,2]
[348049952,1736281842067,-1111.8,9.796e-05,2]
[348049953,1736281842076,-1480.9,9.796e-05,2]
[348049954,1736281842085,-2946.47,9.796e-05,2]
[348049955,1736281842094,-1196.56,9.796e-05,2]
[348049956,1736281842103,-500.0,9.796e-05,2]
[348049957,1736281842112,-500.0,9.797e-05,2]
[348049958,1736281842121,-500.0,9.797e-05,2]
[348049959,1736281842130,-517.06402854,9.797e-05,2]
[348049960,1736281842141,-500.0,9.797e-05,2]
[348049961,1736281842150,-500.0,9.797e-05,2]
[348049962,1736281842159,-500.0,9.797e-05,2]
[348049963,1736281842168,-500.0,9.797e-05,2]
[348049964,1736281842177,-500.0,9.797e-05,2]
[348049965,1736281842186,-500.0,9.797e-05,2]
[348049966,1736281842195,-360.69801968,9.797e-05,2]
[348049967,1736281842204,-501.25039723,9.797e-05,2]
[348049968,1736281842213,-500.0,9.797e-05,2]
[348049969,1736281842222,-500.0,9.797e-05,2]
[348049970,1736281842231,-500.0,9.797e-05,2]
[348049971,1736281842240,-500.0,9.797e-05,2]
[348049972,1736281842249,-500.0,9.797e-05,2]
[348049973,1736281842258,-500.0,9.797e-05,2]
[348049974,1736281842268,-500.0,9.797e-05,2]
[348049975,1736281842277,-500.0,9.797e-05,2]
[348049976,1736281842287,-500.0,9.797e-05,2]
[348049977,1736281842296,-424.75,9.797e-05,2]
[348049978,1736281842305,-500.0,9.797e-05,2]
[348049979,1736281842314,-500.0,9.797e-05,2]
[348049980,1736281842324,-500.0,9.797e-05,2]
[348049981,1736281842333,-500.0,9.797e-05,2]
[348049982,1736281842342,-500.0,9.797e-05,2]
[348049983,1736281842350,-500.0,9.797e-05,2]
[348049984,1736281842360,-500.0,9.797e-05,2]
[348049985,1736281842369,-500.0,9.797e-05,2]
[348049986,1736281842378,-500.0,9.797e-05,2]
[348049987,1736281842389,-500.0,9.797e-05,2]
[348049988,1736281842398,-500.0,9.797e-05,2]
[348049989,1736281842407,-503.80815604,9.797e-05,2]
[348049990,1736281842417,-500.0,9.797e-05,2]
[348049991,1736281842426,-502.41769861,9.797e-05,2]
[348049992,1736281842435,-500.0,9.797e-05,2]
[348049993,1736281842445,-500.0,9.797e-05,2]
[348049994,1736281842454,-500.0,9.797e-05,2]
[348049995,1736281842463,-500.0,9.797e-05,2]
[348049996,1736281842472,-500.0,9.797e-05,2]
[348049997,1736281842481,-500.0,9.797e-05,2]
[348049998,1736281842490,-500.0,9.797e-05,2]
[348049999,1736281842500,-500.0,9.797e-05,2]
[348050000,1736281842509,-500.0,9.797e-05,2]
[348050001,1736281842519,-500.0,9.797e-05,2]
[348050002,1736281842528,-501.92379901,9.797e-05,2]
[348050003,1736281842538,-500.0,9.797e-05,2]
[348050004,1736281842547,-500.0,9.797e-05,2]
[348050005,1736281842557,-578.39,9.797e-05,2]
[348050006,1736281842566,-500.0,9.797e-05,2]
[348050007,1736281842576,-501.49037859,9.797e-05,2]
[348050008,1736281842585,-500.0,9.797e-05,2]
[348050009,1736281842595,-500.0,9.797e-05,2]
[348050010,1736281842604,-500.0,9.797e-05,2]
[348050011,1736281842614,-500.0,9.797e-05,2]
[348050012,1736281842624,-500.0,9.797e-05,2]
[348050013,1736281842633,-500.0,9.797e-05,2]
[348050015,1736281842643,-500.0,9.797e-05,2]
[348050016,1736281842653,-185.93655846,9.797e-05,2]
[348050017,1736281842663,-502.36246496,9.797e-05,2]
[348050018,1736281842672,-500.0,9.797e-05,2]
[348050019,1736281842682,-513.37,9.797e-05,2]
[348050020,1736281842691,-500.0,9.797e-05,2]
[348050022,1736281842701,-500.0,9.797e-05,2]
[348050023,1736281842711,-500.0,9.797e-05,2]
[348050024,1736281842720,-502.16360672,9.797e-05,2]
[348050027,1736281842730,-500.0,9.797e-05,2]
[348050030,1736281842739,-500.0,9.797e-05,2]
[348050032,1736281842749,-500.0,9.797e-05,2]
[348050034,1736281842759,-500.0,9.797e-05,2]
[348050035,1736281842769,-500.0,9.797e-05,2]
[348050036,1736281842779,-500.0,9.797e-05,2]
[348050037,1736281842789,-500.0,9.797e-05,2]
[348050039,1736281842799,-500.0,9.797e-05,2]
[348050040,1736281842809,-501.27072736,9.797e-05,2]
[348050041,1736281842820,-500.0,9.797e-05,2]
[348050042,1736281842830,-500.0,9.797e-05,2]
[348050043,1736281842839,-500.0,9.797e-05,2]
[348050044,1736281842851,-500.0,9.797e-05,2]
[348050045,1736281842861,-500.0,9.797e-05,2]
[348050046,1736281842871,-500.0,9.797e-05,2]
[348050047,1736281842880,-500.0,9.797e-05,2]
[348050048,1736281842896,-500.0,9.797e-05,2]
[348050049,1736281842906,-1000.0,9.797e-05,2]
[348050050,1736281842915,-500.0,9.797e-05,2]
[348050051,1736281842927,-500.0,9.797e-05,2]
[348050052,1736281842936,-500.0,9.797e-05,2]
[348050053,1736281842946,-500.0,9.797e-05,2]
[348050054,1736281842956,-500.0,9.797e-05,2]
[348050055,1736281842966,-500.0,9.797e-05,2]
[348050056,1736281842976,-500.0,9.797e-05,2]
[348050057,1736281842986,-500.0,9.797e-05,2]
[348050058,1736281842997,-500.0,9.797e-05,2]
[348050059,1736281843006,-527.83994577,9.797e-05,2]
[348050060,1736281843016,-500.0,9.797e-05,2]
[348050061,1736281843026,-500.0,9.797e-05,2]
[348050062,1736281843035,-500.0,9.797e-05,2]
[348050063,1736281843046,-500.0,9.797e-05,2]
[348050064,1736281843056,-500.0,9.797e-05,2]
[348050065,1736281843065,-500.0,9.797e-05,2]
[348050066,1736281843074,-500.0,9.797e-05,2]
[348050067,1736281843084,-500.0,9.797e-05,2]
[348050068,1736281843094,-500.0,9.797e-05,2]
[348050069,1736281843103,-500.0,9.797e-05,2]
[348050070,1736281843113,-500.0,9.797e-05,2]
[348050071,1736281843122,-500.0,9.797e-05,2]
[348050072,1736281843131,-500.0,9.797e-05,2]
[348050073,1736281843146,-607.91,9.797e-05,2]
[348050074,1736281843155,-611.78161876,9.797e-05,2]
[348050075,1736281843165,-500.0,9.797e-05,2]
[348050076,1736281843175,-500.0,9.797e-05,2]
[348050077,1736281843185,-500.0,9.797e-05,2]
[348050078,1736281843195,-473.59560358,9.797e-05,2]
[348050079,1736281843205,-500.0,9.797e-05,2]
[348050080,1736281843215,-500.0,9.797e-05,2]
[348050081,1736281843226,-500.0,9.797e-05,2]
[348050082,1736281843235,-500.0,9.797e-05,2]
[348050083,1736281843244,-500.0,9.797e-05,2]
[348050084,1736281843254,-500.0,9.797e-05,2]
[348050085,1736281843263,-556.08,9.797e-05,2]
[348050086,1736281843272,-500.0,9.797e-05,2]
[348050087,1736281843282,-500.0,9.797e-05,2]
[348050088,1736281843292,-500.0,9.797e-05,2]
[348050089,1736281843302,-500.0,9.797e-05,2]
[348050090,1736281843312,-500.0,9.797e-05,2]
[348050091,1736281843321,-500.0,9.797e-05,2]
[348050092,1736281843331,-500.0,9.797e-05,2]
[348050093,1736281843340,-500.0,9.797e-05,2]
[348050094,1736281843350,-500.0,9.797e-05,2]
[348050095,1736281843359,-500.0,9.797e-05,2]
[348050096,1736281843369,-500.0,9.797e-05,2]
[348050097,1736281843378,-500.0,9.797e-05,2]
[348050098,1736281843389,-500.0,9.797e-05,2]
[348050099,1736281843399,-500.0,9.797e-05,2]
[348050100,1736281843409,-500.0,9.797e-05,2]
[348050101,1736281843418,-500.0,9.797e-05,2]
[348050102,1736281843428,-500.0,9.797e-05,2]
[348050103,1736281843438,-500.0,9.797e-05,2]
[348050104,1736281843447,-500.0,9.797e-05,2]
[348050105,1736281843457,-500.0,9.797e-05,2]
[348050106,1736281843467,-502.91449637,9.797e-05,2]
[348050107,1736281843476,-500.0,9.797e-05,2]
[348050108,1736281843486,-500.0,9.797e-05,2]
[348050109,1736281843497,-500.0,9.797e-05,2]
[348050110,1736281843507,-500.0,9.797e-05,2]
[348050111,1736281843516,-500.0,9.797e-05,2]
[348050112,1736281843527,-500.0,9.797e-05,2]
[348050113,1736281843537,-500.0,9.797e-05,2]
[348050114,1736281843546,-500.0,9.797e-05,2]
[348050115,1736281843556,-500.0,9.797e-05,2]
[348050116,1736281843566,-500.0,9.797e-05,2]
[348050117,1736281843575,-500.0,9.797e-05,2]
[348050118,1736281843585,-500.0,9.797e-05,2]
[348050119,1736281843595,-500.0,9.797e-05,2]
[348050120,1736281843604,-500.0,9.797e-05,2]
[348050121,1736281843614,-500.0,9.797e-05,2]
[348050122,1736281843778,-500.0,9.797e-05,2]
[348050123,1736281843789,-500.0,9.797e-05,2]
[348050124,1736281843799,-500.0,9.797e-05,2]
[348050125,1736281843809,-620.06,9.797e-05,2]
[348050126,1736281843820,-500.0,9.797e-05,2]
[348050127,1736281843829,-500.0,9.797e-05,2]
[348050128,1736281843839,-500.0,9.797e-05,2]
[348050129,1736281843851,-371.28117356,9.797e-05,2]
[348050130,1736281843861,-500.0,9.797e-05,2]
[348050131,1736281843870,-500.0,9.797e-05,2]
[348050132,1736281843879,-500.0,9.797e-05,2]
[348050133,1736281843891,-500.0,9.797e-05,2]
[348050134,1736281843902,-450.16857146,9.797e-05,2]
[348050135,1736281843911,-500.0,9.797e-05,2]
[348050136,1736281843921,-500.0,9.797e-05,2]
[348050137,1736281843931,-500.0,9.797e-05,2]
[348050138,1736281843940,-500.0,9.797e-05,2]
[348050139,1736281843950,-500.0,9.797e-05,2]
[348050140,1736281843960,-500.0,9.797e-05,2]
[348050141,1736281843970,-500.0,9.797e-05,2]
[348050142,1736281843980,-500.0,9.797e-05,2]
[348050143,1736281843989,-545.22076366,9.797e-05,2]
[348050144,1736281843999,-500.0,9.797e-05,2]
[348050145,1736281844009,-500.0,9.797e-05,2]
[348050146,1736281844019,-603.46,9.797e-05,2]
[348050147,1736281844029,-500.0,9.797e-05,2]
[348050148,1736281844038,-500.0,9.797e-05,2]
[348050149,1736281844049,-722.3,9.797e-05,2]
[348050150,1736281844059,-500.0,9.797e-05,2]
[348050151,1736281844070,-500.0,9.797e-05,2]
[348050152,1736281844079,-500.0,9.797e-05,2]
[348050153,1736281844089,-500.0,9.797e-05,2]
[348050154,1736281844099,-500.0,9.797e-05,2]
[348050155,1736281844109,-500.0,9.797e-05,2]
[348050156,1736281844120,-500.0,9.797e-05,2]
[348050157,1736281844129,-500.0,9.797e-05,2]
[348050158,1736281844141,-500.0,9.797e-05,2]
[348050159,1736281844150,-500.0,9.797e-05,2]
[348050160,1736281844160,-500.0,9.797e-05,2]
[348050161,1736281844169,-500.0,9.797e-05,2]
[348050162,1736281844179,-500.0,9.797e-05,2]
[348050163,1736281844188,-500.0,9.797e-05,2]
[348050164,1736281844197,-500.0,9.797e-05,2]
[348050165,1736281844206,-500.0,9.797e-05,2]
[348050166,1736281844216,-500.0,9.797e-05,2]
[348050167,1736281844226,-500.0,9.797e-05,2]
[348050168,1736281844236,-500.0,9.797e-05,2]
[348050169,1736281844247,-500.0,9.797e-05,2]
[348050170,1736281844256,-500.0,9.797e-05,2]
[348050171,1736281844266,-500.0,9.797e-05,2]
[348050172,1736281844275,-156.995149,9.797e-05,2]
[348050173,1736281844285,-500.0,9.797e-05,2]
[348050174,1736281844295,-500.0,9.797e-05,2]
[348050175,1736281844305,-500.0,9.797e-05,2]
[348050176,1736281844315,-500.0,9.797e-05,2]
[348050177,1736281844325,-500.0,9.797e-05,2]
[348050178,1736281844334,-500.0,9.797e-05,2]
[348050179,1736281844344,-500.0,9.797e-05,2]
[348050180,1736281844353,-500.0,9.797e-05,2]
[348050181,1736281844362,-619.36,9.797e-05,2]
[348050182,1736281844372,-500.0,9.797e-05,2]
[348050183,1736281844381,-500.0,9.797e-05,2]
[348050184,1736281844392,-500.0,9.797e-05,2]
[348050185,1736281844401,-500.0,9.797e-05,2]
[348050186,1736281844411,-500.0,9.797e-05,2]
[348050187,1736281844420,-500.0,9.797e-05,2]
[348050188,1736281844429,-500.0,9.797e-05,2]
[348050189,1736281844439,-500.0,9.797e-05,2]
[348050190,1736281844449,-500.0,9.797e-05,2]
[348050191,1736281844458,-500.0,9.797e-05,2]
[348050192,1736281844467,-500.0,9.797e-05,2]
[348050193,1736281844477,-500.0,9.797e-05,2]
[348050194,1736281844486,-500.0,9.797e-05,2]
[348050195,1736281844496,-500.0,9.797e-05,2]
[348050196,1736281844505,-500.0,9.797e-05,2]
[348050197,1736281844514,-658.84,9.797e-05,2]
[348050198,1736281844524,-500.0,9.797e-05,2]
[348050199,1736281844534,-150.0,9.797e-05,2]
[348050200,1736281844543,-500.0,9.797e-05,2]
[348050201,1736281844552,-500.0,9.797e-05,2]
[348050202,1736281844561,-500.0,9.797e-05,2]
[348050203,1736281844571,-500.0,9.797e-05,2]
[348050204,1736281844580,-500.0,9.797e-05,2]
[348050205,1736281844590,-500.0,9.797e-05,2]